bitfinex-derivatives/quotes_ETHF0:USTF0_20260315
["timestamp","ask_amount","ask_price","bid_price","bid_amount"]
[1773565449013,0.93343599,2116.5,2116.0,0.0040943]
[1773565449607,10.34543599,2116.5,2115.5,0.94574398]
[1773565449813,10.34543599,2116.5,2115.3,0.94574398]
[1773565449814,0.93343599,2116.4,2115.3,0.94574398]
[1773565450114,0.93343599,2116.4,2115.4,41.74574398]
[1773565450609,0.93343599,2116.4,2115.4,41.75100084]
[1773565451215,0.93343599,2116.4,2115.5,0.94574398]
[1773565451509,0.93343599,2116.7,2115.5,0.94574398]
[1773565451714,0.93343599,2116.6,2115.5,0.94574398]
[1773565453712,0.93343599,2116.4,2115.5,0.94574398]
[1773565454114,0.93343599,2116.3,2115.5,0.94574398]
[1773565455910,0.93343599,2116.2,2115.5,0.94574398]
[1773565462023,0.59545364,2116.7,2115.5,0.94574398]
[1773565462316,0.59545364,2116.7,2115.7,0.62564091]
[1773565462624,0.59928067,2116.8,2115.7,0.62564091]
[1773565464418,0.59928067,2116.8,2115.9,0.62564091]
[1773565472017,0.59928067,2116.8,2115.9,6.52386986]
[1773565472223,0.59928067,2116.8,2116.0,0.62564091]
[1773565472726,0.59545364,2117.1,2116.1,0.62564091]
[1773565473024,0.59545364,2117.1,2116.2,0.62564091]
[1773565473724,0.60075685,2117.1,2116.3,0.62564091]
[1773565475123,0.60075685,2117.1,2116.4,40.8]
[1773565475426,0.60075685,2117.1,2116.5,0.62564091]
[1773565476630,0.60075685,2117.1,2116.4,41.42564091]
[1773565476825,0.60075685,2117.1,2116.5,0.62564091]
[1773565480132,0.60075685,2117.1,2116.4,40.8]
[1773565481330,0.60075685,2117.1,2116.1,0.62564091]
[1773565481727,0.60075685,2117.1,2116.3,0.62564091]
[1773565486637,0.59545364,2117.0,2116.3,0.62564091]
[1773565492637,0.59545364,2117.0,2116.4,0.541587]
[1773565492944,0.56876637,2117.1,2116.4,0.541587]
[1773565499345,0.56346316,2117.0,2116.4,0.541587]
[1773565504447,10.02546316,2117.0,2116.4,0.541587]
[1773565504643,0.56346316,2117.4,2116.7,5.89822895]
[1773565505044,0.56346316,2117.4,2116.6,5.89822895]
[1773565505350,0.56346316,2117.4,2116.5,6.43981595]
[1773565505551,0.56346316,2117.2,2116.6,0.541587]
[1773565509156,0.56346316,2117.2,2116.5,0.541587]
[1773565511560,0.00425201,2117.4,2116.5,6.43981595]
[1773565511758,0.56771517,2117.4,2116.7,0.541587]
[1773565512663,10.03571517,2117.4,2116.7,0.541587]
[1773565513665,0.00425201,2117.4,2116.9,0.541587]
[1773565513865,0.00425201,2117.4,2116.9,0.54490487]
[1773565514358,0.56346316,2117.9,2116.9,0.54490487]
[1773565514563,0.56346316,2117.9,2117.1,0.541587]
[1773565514964,0.56346316,2117.9,2117.2,41.341587]
[1773565515468,0.56689631,2117.9,2117.2,41.341587]
[1773565515762,0.56689631,2117.9,2117.0,0.541587]
[1773565516068,0.56346316,2117.8,2116.9,0.54490487]
[1773565516267,0.56346316,2117.8,2117.0,40.8]
[1773565516660,0.56346316,2117.8,2117.0,41.341587]
[1773565516865,0.56346316,2117.8,2117.0,0.541587]
[1773565517262,0.56346316,2117.6,2117.0,0.541587]
[1773565517865,0.56346316,2117.6,2116.9,0.00331787]
[1773565519969,0.56689631,2117.9,2116.9,0.54490487]
[1773565521472,0.56689631,2117.9,2117.0,0.541587]
[1773565521970,0.56689631,2117.9,2117.1,0.55207554]
[1773565522172,0.00343315,2117.9,2117.1,0.55207554]
[1773565522973,0.59598995,2117.9,2117.1,0.55207554]
[1773565526370,0.00343315,2117.9,2117.1,0.55207554]
[1773565526666,0.00343315,2117.9,2117.2,6.45030449]
[1773565526872,0.00343315,2117.9,2117.3,0.55207554]
[1773565527468,0.5925568,2118.2,2117.3,0.55207554]
[1773565528574,0.59770713,2118.2,2117.3,0.55207554]
[1773565529973,0.59770713,2118.2,2117.2,0.55207554]
[1773565530179,0.59770713,2118.2,2117.0,0.55207554]
[1773565530368,0.59770713,2118.2,2116.9,0.00331787]
[1773565530573,0.59770713,2118.2,2116.9,0.55539341]
[1773565532080,0.5925568,2118.1,2116.9,0.55539341]
[1773565535476,0.5925568,2118.1,2116.9,0.00331787]
[1773565535779,0.5925568,2117.9,2116.9,0.55539341]
[1773565536281,9.9675568,2117.9,2116.9,0.55539341]
[1773565536480,0.5925568,2117.8,2116.9,0.55539341]
[1773565540280,0.5925568,2117.7,2116.9,0.55539341]
[1773565546090,0.5925568,2117.6,2116.9,0.55539341]
[1773565549288,0.5925568,2117.6,2116.9,0.00331787]
[1773565549493,0.5925568,2117.6,2116.5,0.55207554]
[1773565549693,0.5925568,2117.5,2116.5,0.55207554]
[1773565550495,0.5925568,2117.5,2116.5,0.55697349]
[1773565551596,0.56776193,2117.0,2116.5,0.55697349]
[1773565552299,0.56776193,2116.8,2116.3,0.57923282]
[1773565552798,0.56776193,2116.8,2116.3,41.37923282]
[1773565553499,2.35320475,2116.8,2116.3,41.38308416]
[1773565553799,0.56776193,2116.7,2116.3,41.38308416]
[1773565553997,0.57269253,2116.7,2116.3,41.38308416]
[1773565554300,0.57269253,2116.7,2116.3,0.58308416]
[1773565555401,0.57269253,2116.7,2116.3,0.00385134]
[1773565555995,0.56776193,2116.5,2116.0,0.57923282]
[1773565556601,0.56776193,2116.5,2116.1,0.57923282]
[1773565556801,0.56776193,2116.5,2116.0,40.8]
[1773565557000,0.56776193,2116.5,2116.0,41.37923282]
[1773565557203,0.56776193,2116.3,2116.0,40.80481495]
[1773565557503,0.56776193,2116.1,2115.7,0.57923282]
[1773565558505,0.56776193,2116.1,2115.7,0.58364497]
[1773565558702,0.56776193,2116.0,2115.3,0.57923282]
[1773565559006,0.56776193,2115.6,2115.3,0.57923282]
[1773565559706,0.56776193,2115.6,2115.3,0.00382722]
[1773565560207,0.56776193,2115.6,2115.3,0.58306004]
[1773565560407,0.56776193,2115.6,2115.3,0.00382722]
[1773565561508,9.029,2116.0,2115.3,0.58306004]
[1773565561715,0.56776193,2115.9,2115.3,0.58306004]
[1773565563809,0.56776193,2116.2,2115.3,0.58306004]
[1773565568014,0.56776193,2116.2,2115.3,0.54886004]
[1773565569120,0.56776193,2116.2,2115.5,0.57923282]
[1773565570521,2.61421274,2117.0,2115.4,40.8]
[1773565570522,0.56776193,2117.0,2116.2,0.57923282]
[1773565571317,0.57196387,2117.0,2116.2,0.57923282]
[1773565572221,0.57196387,2117.0,2115.7,0.57923282]
[1773565574313,0.57196387,2117.0,2115.6,5.89822895]
[1773565574314,0.57196387,2117.0,2115.9,0.57923282]
[1773565575422,0.57196387,2117.0,2115.7,0.57923282]
[1773565576521,0.56776193,2116.8,2115.7,0.57923282]
[1773565577918,0.56776193,2116.8,2115.4,40.8]
[1773565578125,0.56776193,2116.3,2115.3,0.58535602]
[1773565578520,0.56776193,2116.3,2115.4,0.57923282]
[1773565578521,0.56776193,2116.2,2115.4,0.57923282]
[1773565579922,0.56776193,2116.2,2115.3,0.0061232]
[1773565582822,0.56776193,2116.2,2115.3,0.54820133]
[1773565583029,0.58458427,2116.0,2115.3,0.54820133]
[1773565584727,0.58458427,2116.8,2115.8,0.08747705]
[1773565584927,0.58458427,2116.8,2115.9,0.08747705]
[1773565586626,0.58878621,2117.0,2116.0,0.09343352]
[1773565587132,0.58878621,2117.0,2116.2,0.09343352]
[1773565591228,0.58878621,2117.0,2115.7,7.35362221]
[1773565591229,0.58878621,2117.0,2115.6,5.88110692]
[1773565591434,0.15423056,2116.5,2115.5,0.54207813]
[1773565591625,0.17541854,2116.4,2115.5,0.54207813]
[1773565595235,0.17541854,2116.4,2115.3,0.0061232]
[1773565595438,0.17541854,2116.4,2115.3,0.54820133]
[1773565597433,0.18643433,2116.3,2115.1,0.54207813]
[1773565597638,0.18643433,2116.1,2115.1,0.54207813]
[1773565598039,0.18643433,2116.0,2115.1,0.54207813]
[1773565598434,0.18643433,2116.0,2115.1,0.54785113]
[1773565600143,0.18714179,2115.9,2115.1,0.54785113]
[1773565614153,0.16556135,2116.0,2115.1,0.54785113]
[1773565620258,0.15134912,2116.1,2115.1,0.54785113]
[1773565620963,0.16420527,2116.0,2115.1,0.54785113]
[1773565621157,0.16420527,2115.9,2115.1,0.54785113]
[1773565626858,9.171,2115.8,2115.1,0.54785113]
[1773565627056,0.16420527,2115.9,2115.1,0.54785113]
[1773565627261,9.33820527,2115.9,2115.1,0.54785113]
[1773565627659,5.90391095,2116.2,2115.1,0.54785113]
[1773565627660,3.94896137,2116.1,2115.1,0.54785113]
[1773565627864,0.25002532,2116.2,2115.3,0.55763517]
[1773565628467,0.25002532,2116.2,2115.5,0.55763517]
[1773565630769,0.27890021,2116.0,2115.5,0.55763517]
[1773565630969,0.27890021,2116.0,2115.3,3.94490836]
[1773565631168,0.27890021,2116.0,2115.4,0.55763517]
[1773565632372,9.205,2115.9,2115.4,0.55763517]
[1773565633165,9.50712071,2115.9,2115.4,0.55763517]
[1773565633564,0.30908379,2115.8,2115.4,0.55763517]
[1773565633969,9.51408379,2115.9,2115.4,0.55763517]
[1773565636874,0.34117933,2115.8,2115.4,0.55763517]
[1773565641675,0.40388883,2115.9,2115.4,0.55763517]
[1773565641881,9.245,2115.8,2115.4,0.55763517]
[1773565642182,0.40388883,2116.0,2115.4,0.55763517]
[1773565642479,9.246,2115.9,2115.4,0.55763517]
[1773565644178,9.6648149,2115.9,2115.4,0.55763517]
[1773565648988,0.45536027,2115.8,2115.4,0.55763517]
[1773565651087,0.46935981,2116.1,2115.4,0.55763517]
[1773565651288,12.25958693,2117.1,2115.1,5.88687992]
[1773565651289,3.96426463,2117.3,2116.8,0.23616]
[1773565651487,0.66087679,2118.6,2117.1,0.00702475]
[1773565651786,0.66087679,2118.6,2118.4,5.89625318]
[1773565651982,18.71313963,2118.6,2118.5,12.95898198]
[1773565652182,9.269,2118.8,2118.5,7.64721314]
[1773565652382,18.22966751,2118.6,2118.3,4.61991751]
[1773565652586,0.66087679,2118.6,2118.1,5.89625318]
[1773565652789,0.66087679,2118.4,2118.0,6.60925565]
[1773565653183,58.85186687,2118.3,2117.9,6.60925565]
[1773565653385,0.66087679,2118.3,2117.9,0.71649667]
[1773565653781,0.66087679,2118.5,2117.9,0.71649667]
[1773565653992,18.8905443,2118.5,2117.9,0.71649667]
[1773565654285,0.66087679,2118.5,2117.9,0.71649667]
[1773565654490,18.8905443,2118.5,2117.9,0.71649667]
[1773565654694,0.66087679,2118.3,2117.1,0.71300247]
[1773565654890,0.66087679,2118.0,2117.2,41.51300247]
[1773565655188,9.89587679,2117.9,2117.3,0.71300247]
[1773565655388,9.90187679,2117.9,2117.3,0.71300247]
[1773565655584,9.90187679,2117.9,2117.3,0.71655597]
[1773565657393,0.66087679,2117.8,2117.3,0.71655597]
[1773565657593,0.66087679,2118.6,2117.3,0.71655597]
[1773565657792,0.66087679,2118.5,2117.3,0.71655597]
[1773565658799,0.66087679,2118.3,2117.3,0.71655597]
[1773565659097,9.91287679,2118.2,2117.3,0.71655597]
[1773565659492,0.66087679,2118.2,2117.3,0.71655597]
[1773565659690,9.92987679,2118.2,2117.3,0.71655597]
[1773565660189,56.19984294,2118.1,2117.3,0.71655597]
[1773565660389,0.6372685,2118.4,2117.3,0.71655597]
[1773565660694,56.86071973,2118.3,2117.4,0.71300247]
[1773565660892,0.66087679,2118.3,2117.4,0.71300247]
[1773565662094,0.66087679,2118.3,2117.5,0.71300247]
[1773565663691,0.66087679,2118.1,2117.5,0.71300247]
[1773565664197,0.66087679,2118.0,2117.5,0.71300247]
[1773565664397,0.66087679,2118.0,2117.6,7.63895571]
[1773565664696,56.86071973,2117.9,2117.7,6.92595324]
[1773565664895,56.86071973,2117.9,2117.5,0.71300247]
[1773565665094,0.66087679,2117.8,2117.5,0.71300247]
[1773565666696,56.86071973,2117.7,2117.3,0.0035535]
[1773565666900,0.66087679,2117.7,2117.3,0.71655597]
[1773565667595,56.86071973,2117.6,2117.3,0.0035535]
[1773565668101,56.19984294,2117.6,2117.3,0.71655597]
[1773565668694,15.85706316,2117.6,2117.3,0.71655597]
[1773565668903,2.52421569,2119.1,2117.5,9.82708863]
[1773565669199,2.52421569,2119.1,2118.2,0.71300247]
[1773565669503,2.52421569,2119.1,2118.4,0.71300247]
[1773565669902,18.22966751,2119.0,2118.4,0.71300247]
[1773565670500,20.67827018,2119.0,2118.4,0.71300247]
[1773565671203,2.44860267,2119.0,2118.4,0.71300247]
[1773565671503,24.55392608,2118.9,2118.4,0.71300247]
[1773565671699,6.4480724,2118.7,2118.3,40.8]
[1773565671904,24.67773991,2118.5,2118.3,40.8]
[1773565672094,6.4480724,2118.5,2118.3,40.8]
[1773565672499,15.72966751,2118.4,2118.3,40.8]
[1773565672699,15.72966751,2118.4,2118.1,6.49025237]
[1773565672900,15.72966751,2118.4,2118.0,6.49025237]
[1773565672901,22.17773991,2118.4,2118.0,6.49025237]
[1773565673097,6.4480724,2118.4,2118.1,40.8]
[1773565673300,6.4480724,2118.4,2118.1,47.29025237]
[1773565673504,15.72966751,2118.3,2118.1,47.29025237]
[1773565673796,6.4480724,2118.6,2118.1,47.29025237]
[1773565673996,15.72966751,2118.4,2118.1,47.29025237]
[1773565674201,6.4480724,2118.4,2118.1,40.8]
[1773565674408,15.72966751,2118.3,2118.1,40.8]
[1773565674906,15.72966751,2118.2,2118.0,6.49025237]
[1773565675107,15.9380724,2118.4,2118.0,6.49025237]
[1773565675403,29.42300865,2125.0,2118.0,6.49025237]
[1773565675404,6.4480724,2120.3,2118.4,6.72624237]
[1773565675602,6.4480724,2120.3,2119.2,6.49025237]
[1773565675798,6.4480724,2120.0,2119.2,6.49025237]
[1773565676005,6.4480724,2119.9,2119.2,6.49025237]
[1773565676206,6.4480724,2120.1,2119.3,6.49025237]
[1773565676406,6.45370862,2120.1,2119.4,6.49025237]
[1773565676806,9.36363622,2120.1,2119.6,6.49025237]
[1773565677010,9.36363622,2120.1,2119.7,13.52069935]
[1773565677011,0.00563622,2120.1,2119.7,13.52069935]
[1773565677204,15.72966751,2120.1,2119.8,13.52069935]
[1773565677406,6.4480724,2120.2,2119.9,7.03044698]
[1773565677711,6.4480724,2120.2,2120.0,7.03044698]
[1773565677901,6.4480724,2120.2,2119.8,6.49025237]
[1773565678103,6.45249211,2120.2,2119.9,7.02866667]
[1773565678302,6.45249211,2120.2,2120.0,7.02866667]
[1773565678503,6.45249211,2120.2,2119.8,6.49025237]
[1773565678703,16.36674588,2119.9,2119.5,6.49025237]
[1773565679012,6.4480724,2119.9,2119.5,6.49025237]
[1773565679208,9.91867348,2119.8,2119.5,6.49025237]
[1773565679508,6.4480724,2119.9,2119.3,0.00612756]
[1773565679708,6.4480724,2119.9,2119.1,13.75375628]
[1773565679709,6.4480724,2119.9,2119.1,6.49025237]
[1773565679909,9.41,2119.8,2119.1,6.49025237]
[1773565680103,6.4480724,2119.9,2119.1,6.49025237]
[1773565680508,9.318,2119.8,2119.1,6.49025237]
[1773565680701,6.4480724,2119.8,2119.1,6.49441803]
[1773565680906,6.4480724,2119.8,2119.2,40.8]
[1773565682711,6.4480724,2119.8,2119.1,6.49441803]
[1773565684712,6.45249211,2120.2,2119.1,6.49441803]
[1773565684915,15.88149211,2120.2,2119.3,6.49025237]
[1773565685310,6.4480724,2120.1,2119.3,6.49025237]
[1773565685505,6.4480724,2120.1,2119.1,7.26766957]
[1773565685710,6.4480724,2120.1,2119.2,6.49025237]
[1773565685906,6.4480724,2119.9,2119.2,6.49025237]
[1773565686608,9.392,2119.8,2119.2,6.49025237]
[1773565687420,6.4480724,2119.7,2119.1,0.00416566]
[1773565688210,6.4480724,2119.7,2118.7,13.75375628]
[1773565688616,6.4480724,2119.7,2118.8,40.8]
[1773565689220,6.4480724,2119.7,2118.8,40.80567516]
[1773565689619,6.4480724,2119.7,2118.9,7.26350391]
[1773565690121,6.4480724,2119.7,2118.8,7.24557078]
[1773565690721,6.4480724,2119.7,2118.9,6.49742886]
[1773565690923,6.4480724,2119.5,2119.0,6.49742886]
[1773565691222,6.4480724,2119.3,2119.1,6.49742886]
[1773565691417,11.01485176,2119.2,2118.8,13.73582315]
[1773565691618,12.39040677,2119.2,2118.9,6.43108164]
[1773565691922,12.39040677,2119.2,2119.0,6.43108164]
[1773565692118,12.39040677,2119.2,2119.1,6.43108164]
[1773565692318,6.4480724,2119.1,2118.8,6.49592753]
[1773565692523,6.4480724,2119.0,2118.8,0.00567516]
[1773565693228,15.9920724,2119.1,2118.8,0.00567516]
[1773565693727,6.4480724,2119.0,2118.8,0.00567516]
[1773565694823,6.4480724,2119.0,2118.2,6.49025237]
[1773565695132,6.4480724,2119.7,2118.2,6.49025237]
[1773565695324,6.4480724,2119.5,2118.4,6.49025237]
[1773565695926,6.4480724,2119.3,2118.4,6.49454399]
[1773565696127,6.4480724,2119.1,2118.4,6.49454399]
[1773565697120,15.9850724,2119.1,2118.4,6.49454399]
[1773565697326,6.4480724,2119.0,2118.4,6.49454399]
[1773565700933,6.4480724,2119.0,2118.6,6.49025237]
[1773565703232,6.4480724,2119.0,2118.4,7.73572684]
[1773565703831,6.4480724,2119.0,2118.5,7.73143522]
[1773565704138,15.9100724,2119.0,2118.5,7.73143522]
[1773565704336,15.8620724,2119.0,2118.7,7.73143522]
[1773565704637,15.8620724,2119.0,2118.8,5.75427334]
[1773565704938,15.8620724,2119.0,2118.9,5.75427334]
[1773565706337,15.8620724,2119.0,2118.9,5.36571717]
[1773565708037,8.0865701,2118.9,2118.4,48.53572684]
[1773565708239,8.0865701,2118.9,2118.4,0.00429162]
[1773565712546,8.0865701,2118.9,2118.4,7.73572684]
[1773565712846,17.6905701,2118.8,2118.5,7.73143522]
[1773565713046,17.6955701,2118.8,2118.5,7.73143522]
[1773565713346,8.0865701,2118.7,2118.4,0.00429162]
[1773565713546,8.09242151,2118.7,2118.4,0.00429162]
[1773565715342,0.00585141,2118.7,2118.4,7.73572684]
[1773565715539,8.09242151,2118.7,2118.4,7.73572684]
[1773565716445,8.0865701,2120.1,2118.7,7.73143522]
[1773565716646,8.0865701,2120.1,2119.3,7.73143522]
[1773565716843,8.0865701,2119.9,2119.3,7.73143522]
[1773565717048,8.0865701,2119.7,2119.4,7.73143522]
[1773565717246,6.40861355,2119.7,2119.4,7.73143522]
[1773565717448,6.41196689,2119.7,2119.4,7.73143522]
[1773565717849,6.41196689,2119.7,2119.3,11.64525857]
[1773565718050,6.41196689,2119.7,2119.4,7.73143522]
[1773565718352,0.00335334,2119.7,2119.4,7.73143522]
[1773565718747,8.08992344,2119.7,2119.4,7.73143522]
[1773565718947,8.08992344,2119.7,2119.3,11.64525857]
[1773565719250,8.0865701,2119.6,2119.1,5.87139571]
[1773565719442,8.0865701,2119.6,2119.0,7.73143522]
[1773565720055,8.0865701,2119.6,2119.1,5.42567639]
[1773565720255,8.0865701,2119.6,2118.8,7.73143522]
[1773565720456,8.0865701,2119.6,2118.7,5.87139571]
[1773565720457,8.0865701,2119.6,2118.7,13.60283093]
[1773565720755,8.0865701,2119.6,2118.6,5.87139571]
[1773565720954,8.0865701,2119.6,2118.6,13.60283093]
[1773565721451,8.0865701,2119.6,2118.4,13.60712255]
[1773565721654,8.0865701,2119.6,2118.5,7.73143522]
[1773565722254,8.0865701,2119.4,2118.6,7.73143522]
[1773565723159,8.0865701,2119.2,2118.6,7.73143522]
[1773565723359,17.8025701,2119.1,2118.6,7.73143522]
[1773565723559,17.8045701,2119.1,2118.6,7.73143522]
[1773565724057,0.00335334,2119.7,2119.0,7.73143522]
[1773565724261,8.08992344,2119.7,2119.1,7.73143522]
[1773565725560,8.08992344,2119.7,2118.9,7.73143522]
[1773565725760,8.08992344,2119.7,2118.8,7.73143522]
[1773565727061,8.0865701,2119.5,2118.8,7.73143522]
[1773565728764,9.755,2119.4,2118.8,7.73143522]
[1773565729168,8.0865701,2119.5,2118.8,7.73143522]
[1773565729363,9.758,2119.4,2118.8,7.73143522]
[1773565729867,17.8445701,2119.4,2118.8,7.73143522]
[1773565730062,8.0865701,2119.3,2118.8,7.73143522]
[1773565731065,9.767,2119.4,2118.8,7.73143522]
[1773565731264,7.84332392,2119.3,2118.8,7.73143522]
[1773565732170,17.61532392,2119.3,2118.8,7.73143522]
[1773565732568,8.21265306,2119.2,2118.8,7.73143522]
[1773565733171,8.21265306,2119.2,2118.6,8.12904962]
[1773565733771,4.21265306,2119.2,2118.6,8.12904962]
[1773565734070,4.21265306,2119.2,2118.7,8.12904962]
[1773565734469,5.92171045,2120.3,2118.9,8.12904962]
[1773565734771,4.99777422,2120.7,2119.7,8.12904962]
[1773565734973,4.99777422,2120.7,2119.8,8.12904962]
[1773565735164,4.99777422,2120.7,2120.0,8.12904962]
[1773565735568,5.00369003,2120.7,2120.0,8.13403333]
[1773565737066,5.14624661,2120.7,2120.0,0.00498371]
[1773565739374,5.14624661,2120.7,2119.8,8.12904962]
[1773565740366,5.14624661,2120.7,2119.8,8.13299195]
[1773565741780,5.38198661,2120.7,2119.4,8.12904962]
[1773565742174,5.14462765,2120.5,2119.4,8.12904962]
[1773565742376,5.14462765,2120.3,2119.2,8.12904962]
[1773565742875,5.14462765,2120.3,2119.2,8.13364911]
[1773565743682,5.06218336,2120.1,2119.2,8.13364911]
[1773565745282,5.06218336,2120.1,2119.2,0.00459949]
[1773565746884,4.97874034,2119.9,2119.2,0.00459949]
[1773565748678,5.56150281,2121.9,2119.5,8.12904962]
[1773565748881,4.90878807,2121.7,2120.1,8.12904962]
[1773565749078,10.01049959,2122.9,2120.1,8.12904962]
[1773565749079,5.72286433,2123.7,2121.0,4.722]
[1773565749284,5.72286433,2123.7,2121.7,8.12904962]
[1773565749579,6.05426993,2123.7,2121.7,8.12904962]
[1773565749784,6.05786751,2123.7,2121.9,8.12904962]
[1773565749978,5.66229275,2123.5,2122.1,8.12904962]
[1773565750184,5.66229275,2123.5,2122.3,8.12904962]
[1773565750482,5.66229275,2123.4,2122.3,8.12904962]
[1773565750683,5.81742653,2123.3,2122.3,8.12904962]
[1773565751287,5.81742653,2123.2,2122.3,8.12904962]
[1773565751580,5.81742653,2123.2,2121.8,8.12904962]
[1773565751783,5.81742653,2123.2,2121.7,0.00506942]
[1773565751984,5.81742653,2123.2,2121.7,8.13411904]
[1773565752184,0.00359758,2123.7,2121.7,8.13411904]
[1773565752384,5.82788296,2123.7,2121.9,8.12904962]
[1773565752576,5.82788296,2123.7,2122.1,8.12904962]
[1773565753086,5.82788296,2123.7,2122.2,5.50509514]
[1773565753280,5.82788296,2123.7,2122.1,8.12904962]
[1773565753680,5.82788296,2123.7,2122.3,8.12904962]
[1773565753681,5.51122204,2123.7,2122.3,8.12904962]
[1773565755081,5.2351798,2123.5,2122.3,8.12904962]
[1773565755480,5.2351798,2123.4,2122.3,8.12904962]
[1773565756783,5.44925313,2123.2,2122.3,8.12904962]
[1773565758476,5.44925313,2123.2,2121.9,8.12904962]
[1773565759077,5.48208829,2123.0,2121.9,8.12904962]
[1773565760085,5.48208829,2123.0,2121.7,8.13411904]
[1773565760680,5.93475423,2122.8,2121.7,8.13411904]
[1773565760882,5.93475423,2122.4,2121.7,8.13411904]
[1773565762784,0.23553,2122.5,2121.7,8.13411904]
[1773565763388,5.76037011,2122.8,2121.7,8.13411904]
[1773565765590,5.99588011,2122.8,2121.7,0.00506942]
[1773565767690,5.99588011,2122.8,2121.5,7.825992]
[1773565768691,5.99588011,2122.8,2121.5,7.83019841]
[1773565776792,5.30749355,2122.2,2121.5,7.83019841]
[1773565776992,5.31218602,2122.2,2121.5,7.83019841]
[1773565778491,5.31218602,2122.2,2121.5,0.00420641]
[1773565778694,5.31218602,2122.2,2121.3,7.825992]
[1773565778894,5.31218602,2122.2,2121.4,5.6131661]
[1773565779193,5.31218602,2122.2,2121.3,7.825992]
[1773565779393,5.31218602,2122.2,2121.4,5.61323673]
[1773565779595,5.31218602,2122.2,2121.4,0.0052487]
[1773565779785,5.31218602,2122.2,2121.4,7.8312407]
[1773565782400,5.04964289,2122.7,2121.5,5.61338321]
[1773565782696,5.04964289,2122.7,2121.8,7.825992]
[1773565782891,5.04964289,2122.7,2122.0,7.825992]
[1773565783500,5.05388912,2122.7,2122.0,7.825992]
[1773565783697,0.00424623,2122.7,2122.2,7.825992]
[1773565783896,5.00439201,2122.7,2122.2,7.825992]
[1773565784097,5.00439201,2122.7,2121.9,7.825992]
[1773565784098,0.00424623,2122.7,2121.9,7.825992]
[1773565784299,0.00424623,2122.7,2122.1,7.825992]
[1773565784803,0.00424623,2122.7,2122.2,5.61603443]
[1773565785003,0.00424623,2122.7,2122.3,7.825992]
[1773565786298,4.92465582,2123.3,2122.5,7.825992]
[1773565786494,4.92465582,2123.3,2122.6,5.61635264]
[1773565786700,14.96712991,2123.5,2122.8,7.825992]
[1773565786900,5.02512991,2123.4,2122.8,7.825992]
[1773565787305,5.03122624,2123.4,2122.8,7.825992]
[1773565789906,0.00609633,2123.4,2122.8,7.825992]
[1773565790802,4.91081938,2123.4,2122.6,7.1721202]
[1773565791708,0.00609633,2123.4,2122.6,7.1721202]
[1773565791910,0.00609633,2123.4,2122.8,7.57587452]
[1773565794300,4.88309842,2123.4,2122.8,7.57587452]
[1773565796800,4.84938547,2124.2,2122.8,7.57587452]
[1773565797006,4.84938547,2123.9,2123.0,7.57587452]
[1773565797906,4.85435786,2123.9,2123.0,7.58070091]
[1773565799803,4.92944337,2123.6,2122.4,7.57587452]
[1773565799998,4.92944337,2123.4,2122.4,7.57587452]
[1773565800404,4.92944337,2123.4,2121.8,3.89752565]
[1773565800405,4.92944337,2123.2,2121.8,7.57587452]
[1773565800603,4.92944337,2122.6,2121.8,7.57587452]
[1773565800808,14.81744337,2122.6,2121.8,7.58193533]
[1773565801106,9.888,2122.6,2121.8,7.58193533]
[1773565801307,9.888,2122.6,2122.0,7.57587452]
[1773565802209,15.45467018,2122.6,2122.0,7.57587452]
[1773565802406,5.56667018,2122.5,2121.8,0.00606081]
[1773565802600,5.56667018,2122.5,2121.8,7.58193533]
[1773565804110,5.56667018,2122.5,2121.6,7.57587452]
[1773565805007,5.56667018,2122.5,2121.6,7.58091854]
[1773565805310,5.56667018,2122.5,2121.6,0.00504402]
[1773565806207,4.19345422,2122.3,2120.9,7.57587452]
[1773565806402,4.19345422,2122.3,2121.1,7.57587452]
[1773565807203,4.19937381,2122.3,2121.1,7.58077599]
[1773565807410,4.15626544,2121.2,2120.5,7.57587452]
[1773565807604,4.12431503,2121.1,2120.5,7.57587452]
[1773565808309,4.12431503,2121.1,2120.5,7.57919597]
[1773565813326,3.90208164,2121.6,2120.5,7.57919597]
[1773565813521,9.885,2121.5,2120.5,7.57919597]
[1773565814821,9.862,2121.4,2120.5,7.57919597]
[1773565815021,9.863,2121.6,2120.5,7.57919597]
[1773565820529,13.52623642,2121.6,2120.5,7.57919597]
[1773565823231,3.58411613,2121.5,2120.5,7.57919597]
[1773565824327,13.41764531,2121.6,2120.5,7.57919597]
[1773565827332,13.41764531,2121.6,2120.7,7.25832266]
[1773565830834,3.41678432,2121.5,2120.7,7.25832266]
[1773565832831,13.2557771,2121.4,2120.7,7.25832266]
[1773565833237,9.884,2121.7,2120.7,7.25832266]
[1773565833433,13.2557771,2121.7,2120.7,7.25832266]
[1773565833831,3.35994165,2121.6,2120.9,7.25832266]
[1773565836138,3.35994165,2121.6,2121.0,5.43477487]
[1773565836340,3.35994165,2121.6,2120.9,7.25832266]
[1773565836636,3.35994165,2121.6,2121.1,7.25832266]
[1773565837731,3.35994165,2121.6,2120.7,7.25832266]
[1773565838036,3.35994165,2121.6,2120.9,7.25832266]
[1773565841536,13.01754068,2121.7,2120.9,7.25832266]
[1773565842038,3.13354068,2121.6,2121.1,7.25832266]
[1773565843739,3.13354068,2121.6,2120.8,7.25832266]
[1773565843943,3.13354068,2121.6,2120.9,5.43304242]
[1773565844141,3.13354068,2121.6,2120.9,7.25832266]
[1773565845742,3.13354068,2121.6,2120.6,7.25832266]
[1773565845940,0.23566,2121.3,2120.5,0.00332145]
[1773565846136,7.01335833,2121.1,2120.4,7.25832266]
[1773565846336,7.01335833,2121.1,2120.2,7.25832266]
[1773565847140,7.01335833,2121.1,2120.2,7.26179352]
[1773565851251,6.90808779,2121.0,2120.0,7.3261076]
[1773565851538,6.90808779,2121.0,2119.8,7.3261076]
[1773565852341,6.90808779,2121.0,2119.8,7.33002919]
[1773565854638,5.91548793,2122.8,2121.3,0.23566]
[1773565854941,8.10266042,2123.1,2121.9,3.89752565]
[1773565855247,7.63096042,2123.1,2122.0,40.8]
[1773565855439,8.10266042,2123.0,2122.3,3.89752565]
[1773565855644,8.10616969,2123.0,2122.3,2.42586169]
[1773565857038,7.9365652,2122.9,2122.3,0.00490506]
[1773565857643,0.4717,2122.8,2122.3,0.23820744]
[1773565858042,0.4717,2122.8,2122.4,0.23330238]
[1773565858649,9.1879082,2122.8,2122.4,0.23330238]
[1773565858849,9.1879082,2122.8,2122.3,0.18295963]
[1773565859250,9.1879082,2122.8,2121.4,37.57397742]
[1773565859251,8.7162082,2122.7,2121.4,3.89752565]
[1773565859445,9.1879082,2122.7,2121.3,0.17805457]
[1773565859647,8.70454426,2122.5,2121.3,0.17805457]
[1773565859947,8.70454426,2122.2,2121.3,0.17805457]
[1773565860147,8.70454426,2122.0,2121.1,0.17763065]
[1773565860342,8.70454426,2121.8,2121.2,6.45704205]
[1773565860539,8.70454426,2121.6,2121.1,0.00391746]
[1773565860743,8.70454426,2121.6,2120.9,0.17763065]
[1773565860950,9.934,2121.7,2121.1,0.12448791]
[1773565861149,10.4057,2121.7,2121.2,6.55316016]